bitfinex/quotes_ETHUSD_20250425
["timestamp","ask_amount","ask_price","bid_price","bid_amount"]
[1745577484094,0.8058126,1775.2,1774.8,5.6344349]
[1745577484587,0.8058126,1775.2,1774.7,5.63460517]
[1745577484794,0.8058126,1775.2,1774.6,5.63506604]
[1745577484969,0.4238726,1775.2,1774.9,5.63410768]
[1745577485299,0.8194,1775.3,1774.9,5.63410768]
[1745577485986,0.8194,1775.3,1774.9,5.63389938]
[1745577486160,0.8194,1775.3,1774.9,5.63397473]
[1745577486362,0.8168,1775.5,1775.1,5.63336752]
[1745577486588,0.8168,1775.5,1775.0,5.63359417]
[1745577486895,1.24011943,1775.5,1775.2,5.63305737]
[1745577487099,0.8168,1775.5,1775.2,5.63305737]
[1745577487290,0.752,1775.7,1775.4,5.63240694]
[1745577487499,0.752,1775.7,1775.2,0.7776]
[1745577487793,0.752,1775.7,1775.3,5.63269877]
[1745577488157,0.752,1775.7,1775.4,5.632489]
[1745577489502,0.41542244,1775.8,1775.4,6.19556038]
[1745577489667,0.7624,1775.9,1775.4,11.26465149]
[1745577489869,0.7624,1775.9,1775.4,5.63231148]
[1745577490069,0.7624,1775.9,1775.4,11.26462776]
[1745577490302,0.7624,1775.9,1775.4,5.63231148]
[1745577490678,0.7624,1775.9,1775.4,5.63230391]
[1745577491379,0.7624,1775.9,1775.3,5.63265672]
[1745577491562,0.7657,1775.8,1775.2,5.63305675]
[1745577491768,0.7657,1775.8,1775.1,5.567]
[1745577491963,0.7657,1775.8,1775.2,5.63304248]
[1745577492168,0.7657,1775.8,1775.1,11.83619231]
[1745577492363,0.7657,1775.8,1775.2,5.63304961]
[1745577492614,0.7657,1775.8,1775.2,11.26605293]
[1745577492789,1.19855402,1775.8,1775.3,11.26547507]
[1745577492990,1.19855402,1775.8,1775.1,5.567]
[1745577492991,1.19855402,1775.8,1775.4,5.6325098]
[1745577493205,1.19855402,1775.8,1775.5,5.6320992]
[1745577493503,1.19855402,1775.8,1775.4,11.26467955]
[1745577493670,1.19855402,1775.8,1775.4,5.632466]
[1745577496983,0.7505,1775.6,1775.1,11.20027013]
[1745577497398,0.7505,1775.6,1775.1,16.8335862]
[1745577497786,0.7505,1775.6,1775.2,11.26612129]
[1745577497971,0.7505,1775.6,1775.3,5.63268599]
[1745577498581,0.7505,1775.6,1775.5,5.63221627]
[1745577498785,0.8049,1775.8,1775.5,5.63221627]
[1745577499075,1.219048,1775.8,1775.5,5.63202008]
[1745577499396,1.219048,1775.8,1775.3,0.7686]
[1745577499585,1.219048,1775.8,1775.5,5.63216659]
[1745577500499,1.219048,1775.8,1775.5,5.63212133]
[1745577500992,1.219048,1775.8,1775.5,11.26415044]
[1745577501174,1.219048,1775.8,1775.5,5.63199843]
[1745577501371,0.414148,1775.8,1775.6,5.63170803]
[1745577501576,0.7736,1776.0,1775.8,5.6310963]
[1745577502124,0.7736,1776.0,1775.8,5.6310857]
[1745577502271,3.0,1776.4,1775.8,5.6310857]
[1745577502475,1.1292,1776.3,1775.8,11.26212248]
[1745577502671,1.1292,1776.3,1775.7,5.63133973]
[1745577502915,1.1292,1776.3,1775.8,5.63104475]
[1745577503289,1.1292,1776.3,1775.9,5.63091861]
[1745577503510,1.1292,1776.3,1775.8,5.63104475]
[1745577504084,1.1292,1776.3,1775.8,11.26219809]
[1745577504310,1.1292,1776.3,1775.8,5.63104475]
[1745577504618,1.1292,1776.3,1775.8,11.26207535]
[1745577504778,1.1292,1776.3,1775.8,5.6310306]
[1745577505425,1.1292,1776.3,1775.9,5.63086111]
[1745577505590,1.1292,1776.3,1775.9,5.63093706]
[1745577506303,1.1292,1776.3,1775.8,5.63103513]
[1745577506503,1.1292,1776.3,1775.8,11.26220257]
[1745577506704,1.1292,1776.3,1775.8,11.2621275]
[1745577506898,1.1292,1776.3,1775.6,6.3544]
[1745577507136,1.1292,1776.3,1775.8,5.63124245]
[1745577507422,1.89049681,1776.3,1775.8,5.63124245]
[1745577508029,1.89049681,1776.3,1775.8,5.63107737]
[1745577508211,1.89049681,1776.3,1775.8,11.26215865]
[1745577508420,0.78,1776.0,1775.6,5.566]
[1745577508624,1.23412968,1776.0,1775.6,5.566]
[1745577508926,1.23412968,1776.0,1775.5,5.63198738]
[1745577509831,1.23412968,1776.0,1775.3,6.40247048]
[1745577509832,0.76129681,1775.9,1775.3,6.40247048]
[1745577510134,1.1799932,1775.9,1775.4,5.63238525]
[1745577510630,0.7634,1775.8,1775.4,5.63238525]
[1745577510796,0.7634,1775.8,1775.4,6.83587082]
[1745577511449,0.7634,1775.8,1775.2,11.19794927]
[1745577511608,0.7634,1775.8,1775.3,5.6327836]
[1745577511926,0.7634,1775.8,1775.3,5.63284401]
[1745577512150,0.7634,1775.8,1775.4,5.63233841]
[1745577512353,0.7634,1775.8,1775.4,5.63233658]
[1745577514839,0.8173,1776.2,1775.8,0.56313556]
[1745577515235,0.29386878,1777.0,1776.0,0.76129681]
[1745577515434,0.29386878,1777.0,1776.0,5.63061738]
[1745577515435,0.8088,1776.6,1776.0,5.63061738]
[1745577516161,2.0025153,1776.6,1775.8,12.02194357]
[1745577516359,3.758,1776.4,1775.8,11.19625569]
[1745577516666,0.3758,1776.3,1775.8,11.19621042]
[1745577516974,0.758,1776.4,1775.9,5.63093544]
[1745577517175,0.758,1776.4,1776.0,5.63056312]
[1745577517341,0.758,1776.4,1775.9,5.63093544]
[1745577517538,0.758,1776.4,1776.0,5.63060956]
[1745577517779,0.758,1776.4,1776.0,5.63044262]
[1745577517940,0.758,1776.4,1776.0,6.83808375]
[1745577518272,0.758,1776.4,1776.1,5.63030483]
[1745577518572,0.758,1776.4,1776.1,5.63020192]
[1745577519174,1.23741849,1776.6,1776.0,1.20765323]
[1745577519378,0.805,1776.6,1775.9,0.8153]
[1745577519579,0.805,1776.6,1775.9,6.44594823]
[1745577519875,0.805,1776.6,1776.0,5.63058314]
[1745577520043,0.805,1776.6,1775.9,6.44594823]
[1745577520399,0.805,1776.6,1776.0,5.63051956]
[1745577520545,0.805,1776.6,1776.0,6.83816634]
[1745577520746,0.805,1776.6,1776.1,5.6302761]
[1745577520971,0.805,1776.6,1776.0,12.46848013]
[1745577521140,0.805,1776.6,1776.0,6.83804702]
[1745577521690,3.0,1776.5,1775.9,6.44624721]
[1745577523273,5.63024462,1776.2,1775.5,0.8062]
[1745577523498,0.7624,1776.1,1775.5,0.8062]
[1745577524067,0.7624,1776.1,1775.5,6.4383134]
[1745577524267,0.7624,1776.1,1775.6,0.64383134]
[1745577524706,1.18270103,1776.1,1775.6,0.64383134]
[1745577525080,1.18270103,1776.1,1775.6,6.27555332]
[1745577525284,1.18270103,1776.1,1775.6,0.64383134]
[1745577525488,1.18270103,1776.1,1775.5,6.43824347]
[1745577525895,1.18270103,1776.1,1775.5,0.8062]
[1745577526069,3.8295,1776.0,1775.4,5.564]
[1745577526278,3.0,1775.8,1775.4,5.564]
[1745577527597,3.0,1776.0,1775.4,5.564]
[1745577527897,0.8062,1775.7,1775.0,11.19770336]
[1745577528083,0.8062,1775.7,1775.0,5.564]
[1745577528405,0.8062,1775.7,1774.7,11.9604325]
[1745577528406,9.43861348,1775.5,1774.7,11.9604325]
[1745577528589,0.8062,1775.4,1774.7,11.9604325]
[1745577528969,0.7767,1775.2,1774.6,0.6434466]
[1745577529191,0.7767,1775.1,1774.4,5.63566216]
[1745577529377,0.7767,1775.1,1774.7,5.63444828]
[1745577529705,0.7767,1775.1,1774.7,5.63475281]
[1745577529912,0.7767,1775.1,1774.6,5.63487787]
[1745577530097,0.7767,1775.1,1774.7,0.56348779]
[1745577530318,0.7767,1775.1,1774.7,6.19818527]
[1745577530523,0.7767,1775.1,1774.7,0.56348779]
[1745577531045,0.7767,1775.1,1774.7,6.19814254]
[1745577531237,0.7767,1775.1,1774.8,5.63441524]
[1745577531414,0.7767,1775.1,1774.8,1.18325578]
[1745577532912,0.7767,1775.1,1774.7,0.56348779]
[1745577533505,0.7767,1775.1,1774.5,12.08319001]
[1745577533700,0.7767,1775.1,1774.5,6.44798552]
[1745577534107,0.7767,1775.1,1774.5,0.8128]
[1745577534108,3.0,1775.0,1774.5,0.8128]
[1745577534318,0.7767,1775.1,1774.5,0.8128]
[1745577534319,3.7767,1775.1,1774.5,0.8128]
[1745577534639,0.7767,1775.1,1774.5,6.44817237]
[1745577534826,1.15437,1775.1,1774.5,7.65653058]
[1745577535029,1.15437,1775.1,1774.8,5.63434088]
[1745577535030,0.7767,1775.1,1774.8,5.63434088]
[1745577535341,0.8123,1775.3,1774.8,5.63434088]
[1745577535714,0.8123,1775.3,1774.8,5.6342643]
[1745577535935,0.8123,1775.3,1774.7,5.348]
[1745577535936,0.8123,1775.3,1775.0,5.63356174]
[1745577536237,0.8123,1775.3,1775.1,0.56335617]
[1745577536539,0.8123,1775.3,1775.0,5.63380249]
[1745577537871,0.7973,1775.5,1775.1,5.63348088]
[1745577538175,0.7973,1775.5,1775.0,5.63370525]
[1745577538333,0.7973,1775.5,1775.0,5.63355489]
[1745577538529,0.7973,1775.5,1775.1,0.56335549]
[1745577539162,0.7973,1775.5,1775.0,5.63374745]
[1745577539327,0.7973,1775.5,1774.9,6.38763337]
[1745577539528,3.7973,1775.5,1775.0,5.63375711]
[1745577539862,1.21023554,1775.5,1775.1,5.63337048]
[1745577540169,1.21023554,1775.5,1775.0,5.63361088]
[1745577540333,1.21023554,1775.5,1775.2,5.63300573]
[1745577540534,0.7973,1775.5,1775.2,5.63300573]
[1745577540848,5.63063325,1776.0,1775.4,5.63246477]
[1745577540849,0.8023,1775.8,1775.4,5.63246477]
[1745577541257,0.8023,1775.8,1775.3,11.26532618]
[1745577541601,0.8023,1775.8,1775.4,5.63239745]
[1745577541742,0.8023,1775.8,1775.4,6.75890256]
[1745577541938,0.8023,1775.8,1775.4,1.12650511]
[1745577542352,0.8023,1775.8,1775.2,6.42247765]
[1745577542549,0.8023,1775.8,1775.3,5.63283738]
[1745577542768,1.22572014,1775.8,1775.2,6.42247765]
[1745577542974,1.22572014,1775.8,1775.2,0.7895]
[1745577544263,1.22572014,1775.8,1775.1,5.91136109]
[1745577544264,3.7753,1775.7,1775.1,5.91136109]
[1745577544468,0.7753,1775.6,1775.1,11.54473818]
[1745577544641,0.7753,1775.6,1775.2,5.63315331]
[1745577544844,0.7753,1775.6,1775.3,11.26536369]
[1745577545060,1.17622014,1775.8,1775.3,5.63263353]
[1745577545406,0.7528,1775.8,1775.4,5.63232046]
[1745577545662,0.7528,1775.8,1775.4,6.19563757]
[1745577545831,0.7528,1775.8,1775.4,6.19556846]
[1745577546970,0.7528,1775.8,1775.4,6.19554763]
[1745577547332,3.0,1776.1,1775.5,5.63195688]
[1745577547333,0.8146,1776.1,1775.5,5.63195688]
[1745577547631,1.19606,1776.1,1775.5,6.25147577]
[1745577548570,7.2502856,1776.1,1775.5,0.61951889]
[1745577548878,0.8273,1775.8,1775.4,5.63239678]
[1745577549542,0.8273,1775.8,1775.3,5.63262817]
[1745577550563,0.8273,1775.8,1775.3,11.26529403]
[1745577550765,0.8273,1775.8,1775.3,5.63262817]
[1745577550943,0.8273,1775.8,1775.4,0.56326282]
[1745577551145,0.8273,1775.8,1775.4,6.19566917]
[1745577551341,0.8273,1775.8,1775.5,5.63210642]
[1745577551559,0.8273,1775.8,1775.4,6.19566917]
[1745577552160,0.8273,1775.8,1775.4,0.56326282]
[1745577552561,0.8273,1775.8,1775.1,5.91136109]
[1745577552748,0.8168,1775.7,1775.1,5.91136109]
[1745577552954,0.8168,1775.7,1775.1,11.54482888]
[1745577553155,3.0,1775.7,1775.1,11.54482888]
[1745577553354,0.7966,1775.6,1775.1,5.91136109]
[1745577554278,0.7966,1775.6,1775.2,0.59113611]
[1745577556173,0.7966,1775.6,1774.8,16.902]
[1745577556174,0.8012,1775.5,1774.7,0.792]
[1745577556392,0.8012,1775.0,1774.4,5.63553893]
[1745577556595,0.8012,1775.0,1774.6,5.634927]
[1745577556760,0.8012,1775.0,1774.6,5.63495542]
[1745577557142,0.8012,1775.0,1774.4,11.27102548]
[1745577557348,0.8012,1775.0,1774.5,6.76236804]
[1745577557772,0.8012,1775.0,1774.5,12.3975253]
[1745577557971,0.8012,1775.0,1774.5,12.39743735]
[1745577558176,1.21451428,1775.0,1774.5,1.12710255]
[1745577558363,1.21451428,1775.0,1774.4,5.6354109]
[1745577558778,1.21451428,1775.0,1774.3,6.42784515]
[1745577558983,1.21451428,1775.0,1774.4,5.6356943]
[1745577559248,0.8333,1774.8,1774.2,5.348]
[1745577559461,1.55623556,1774.8,1774.2,5.96743]
[1745577559687,0.7846,1774.2,1774.1,0.05]
[1745577561576,5.63492146,1774.7,1774.1,0.05]
[1745577561577,1.25675173,1774.5,1774.1,0.05]
[1745577561769,0.833,1774.5,1774.1,0.05]
[1745577563757,3.833,1774.5,1774.1,0.05]
[1745577563963,1.2163,1774.5,1774.1,0.05]
[1745577564574,1.64704238,1774.5,1774.1,0.05]
[1745577564873,4.64704238,1774.5,1774.1,0.05]
[1745577565465,1.64704238,1774.5,1774.1,0.05]
[1745577566571,0.7995,1774.3,1774.1,0.05]
[1745577568597,3.7995,1774.3,1774.1,0.05]
[1745577569500,1.17945,1774.3,1774.1,0.05]
[1745577570165,0.7995,1774.3,1774.1,0.05]
[1745577570804,4.23084238,1774.5,1774.1,0.05]
[1745577571312,1.23084238,1774.5,1774.1,0.05]
[1745577571806,4.23084238,1774.5,1774.1,0.05]
[1745577572397,0.8153,1774.3,1774.1,0.05]
[1745577572780,6.83303863,1774.3,1774.1,0.05]
[1745577573190,9.45164314,1774.2,1774.1,0.05]
[1745577573507,3.8153,1774.2,1774.1,0.05]
[1745577574791,0.43074238,1774.5,1774.1,0.05]
[1745577575107,11.76180063,1774.5,1774.1,0.05]
[1745577575313,3.0,1774.4,1774.1,0.05]
[1745577576113,0.7983,1774.3,1774.1,0.05]
[1745577578915,6.43446242,1774.3,1774.1,0.05]
[1745577579719,0.7983,1774.3,1774.1,0.05]
[1745577581523,1.7417173,1774.3,1774.1,0.05]
[1745577581723,3.0,1774.3,1774.1,0.05]
[1745577581945,8.296,1774.4,1774.1,0.05]
[1745577583223,13.93171288,1774.4,1774.1,0.05]
[1745577583393,5.63618209,1774.3,1774.1,0.05]
[1745577583586,7.66926627,1774.3,1774.1,0.05]
[1745577584284,0.7775,1774.2,1774.1,0.05]
[1745577584515,6.41384314,1774.2,1774.1,0.05]
[1745577585019,8.44676627,1774.3,1774.1,0.05]
[1745577585223,8.63634314,1774.2,1774.1,0.05]
[1745577586535,3.0,1774.2,1774.1,0.05]
[1745577586934,8.63634314,1774.2,1774.1,0.05]
[1745577589298,3.0,1774.2,1774.1,0.05]
[1745577589601,8.63634314,1774.2,1774.1,0.05]
[1745577590041,11.89550093,1774.2,1774.1,0.05]
[1745577590422,5.49621094,1774.2,1774.1,0.05]
[1745577590606,3.7879,1774.2,1774.1,0.05]
[1745577591008,9.42424314,1774.2,1774.1,0.05]
[1745577591440,3.7879,1774.2,1774.1,0.05]
[1745577591948,1.19024499,1774.5,1774.1,0.05]
[1745577592111,15.16920011,1774.5,1774.1,0.05]
[1745577592305,20.80483018,1774.5,1774.1,0.05]
[1745577592530,3.0,1774.3,1774.1,0.05]
[1745577593657,3.8021,1774.3,1774.1,0.05]
[1745577595608,5.63634314,1774.2,1774.1,0.05]
[1745577595807,15.07454012,1774.3,1774.1,0.05]
[1745577596019,15.0745361,1774.3,1774.1,0.05]
[1745577596235,10.14379675,1774.2,1774.1,0.05]
[1745577598347,10.9067436,1774.2,1774.1,0.05]
[1745577598646,11.7255436,1774.2,1774.1,0.05]
[1745577599206,17.7255436,1774.2,1774.1,0.05]
[1745577602877,16.96259675,1774.2,1774.1,0.05]
[1745577603233,17.7255436,1774.2,1774.1,0.05]
[1745577607031,16.9067436,1774.2,1774.1,0.05]
[1745577607562,16.14379675,1774.2,1774.1,0.05]
[1745577608262,21.31479675,1774.2,1774.1,0.05]
[1745577610026,10.50745361,1774.2,1774.1,0.05]
[1745577610227,16.14379675,1774.2,1774.1,0.05]
[1745577610428,9.0,1774.2,1774.1,0.05]
[1745577611264,9.0,1774.2,1774.1,0.8814]
[1745577611762,6.0,1774.2,1774.1,0.8814]
[1745577612327,6.42729814,1774.5,1774.1,5.68658064]
[1745577612562,6.0,1774.5,1774.2,0.7766]
[1745577613264,6.43197171,1774.5,1774.2,0.7766]
[1745577613467,6.0,1774.5,1774.2,0.7766]
[1745577615267,6.42498857,1774.5,1774.2,0.7766]
[1745577615479,6.42498857,1774.5,1774.1,0.05]
[1745577615631,6.42498857,1774.5,1774.2,0.8205]
[1745577616433,6.42498857,1774.5,1774.2,0.8273]
[1745577617486,0.76294685,1774.3,1774.1,0.05]
[1745577617782,6.39906928,1774.3,1774.1,0.05]
[1745577617957,0.76294685,1774.3,1774.1,0.05]
[1745577618480,9.0,1774.4,1774.1,0.05]
[1745577620981,14.63574166,1774.4,1774.1,0.05]
[1745577621212,3.0,1774.2,1774.1,0.05]
[1745577621492,5.63666084,1774.1,1774.0,0.413709]
[1745577621695,10.80766084,1774.1,1774.0,0.413709]
[1745577621864,5.171,1774.1,1774.0,0.413709]
[1745577622996,3.0,1774.2,1774.0,0.413709]
[1745577623696,9.34082654,1774.4,1774.0,0.413709]
[1745577623697,6.0,1774.1,1774.0,0.413709]
[1745577624693,6.0,1774.3,1774.1,0.8319]
[1745577624894,6.0,1774.3,1774.1,5.63651283]
[1745577625103,6.0,1774.3,1774.2,7.03189442]
[1745577625395,6.0,1774.3,1774.2,1.39555128]
[1745577625907,6.0,1774.3,1774.2,7.03189442]
[1745577626189,6.0,1774.3,1774.2,1.39555128]
[1745577626497,6.0,1774.3,1774.2,7.03189442]
[1745577626698,6.0,1774.3,1774.2,1.39555128]
[1745577627104,6.0,1774.3,1774.2,7.03189442]
[1745577628290,6.0,1774.3,1774.2,1.39555128]
[1745577629364,6.0,1774.3,1774.2,7.03189442]
[1745577629569,6.0,1774.7,1774.2,7.03189442]
[1745577630073,6.0,1774.7,1774.3,0.70318944]
[1745577630298,6.0,1774.7,1774.4,0.8022]
[1745577631056,6.0,1774.7,1774.4,6.43789909]
[1745577631290,6.0,1774.9,1774.4,6.43789909]
[1745577631457,0.22530103,1774.6,1774.4,6.43775387]
[1745577631658,6.0,1774.9,1774.5,0.64377539]
[1745577631966,8.58331428,1775.0,1774.6,6.41132966]
[1745577631967,9.41331428,1775.0,1774.6,6.41132966]
[1745577632168,0.2259499,1774.8,1774.7,6.41115516]
[1745577632387,0.22656321,1774.8,1774.7,7.61566351]
[1745577632569,6.0,1775.0,1774.7,7.61566351]
[1745577632979,0.22723877,1774.9,1774.7,1.98100848]
[1745577633463,0.22723877,1774.9,1774.7,7.61562185]
[1745577633660,0.22723877,1774.9,1774.8,5.63443768]
[1745577633894,6.0,1775.2,1774.8,7.70200363]
[1745577634107,0.22891384,1774.9,1774.8,0.8202]
[1745577634320,6.0,1775.1,1774.8,0.8202]
[1745577634605,6.0,1775.1,1774.6,5.63496195]
[1745577634606,0.22884105,1774.9,1774.6,0.8202]
[1745577634908,0.22821526,1774.8,1774.6,0.8202]
[1745577635392,6.0,1775.1,1774.6,0.8202]
[1745577635694,5.16654685,1775.0,1774.4,0.8202]
[1745577636008,10.18020245,1775.0,1774.4,6.45566597]
[1745577636308,10.18020245,1775.0,1774.2,5.63629989]
[1745577636309,6.37660245,1775.0,1774.6,5.63505814]
[1745577636495,6.37660245,1775.0,1774.7,0.8202]
[1745577636794,0.82838017,1775.0,1774.7,0.8202]
[1745577636995,0.22838017,1775.0,1774.7,6.4549305]
[1745577637193,0.22838017,1775.0,1774.7,0.8202]
[1745577637772,0.22838017,1775.0,1774.7,6.45493822]
[1745577638514,0.22838017,1775.0,1774.7,0.8202]
[1745577639357,0.22838017,1775.0,1774.7,6.45478049]
[1745577639565,0.22838017,1775.0,1774.7,7.66375241]
[1745577641505,0.22838017,1775.0,1774.9,5.63412023]
[1745577641797,0.22838017,1775.0,1774.9,6.41982023]
[1745577642163,6.0,1775.1,1774.9,0.7857]
[1745577642595,0.23007846,1775.0,1774.9,0.7857]
[1745577644105,0.7969,1774.8,1774.1,0.7523]
[1745577644276,6.0,1774.7,1774.1,6.38876006]
[1745577644479,6.22995458,1774.7,1774.1,6.38875889]
[1745577644874,6.22995458,1774.7,1774.2,5.63631723]
[1745577645281,6.22995458,1774.7,1774.1,6.38875889]
[1745577645282,7.00893472,1774.7,1774.1,6.38875889]
[1745577645484,7.43272298,1774.7,1774.2,5.63612823]
[1745577645820,7.43272298,1774.7,1774.1,6.38875889]
[1745577646175,5.63507605,1774.6,1774.1,0.7523]
[1745577646391,0.22918568,1774.5,1774.1,0.7523]
[1745577646704,0.7895,1774.6,1774.1,0.7523]
[1745577646865,0.2273121,1774.4,1774.0,0.413709]
[1745577647069,0.7895,1774.3,1774.0,0.413709]
[1745577647308,1.01642754,1774.3,1774.0,0.413709]
[1745577648092,7.01642754,1774.3,1774.0,0.413709]
[1745577651170,6.22692754,1774.3,1774.0,0.413709]
[1745577652069,6.22692754,1774.3,1774.0,6.05068252]
[1745577652471,6.22692754,1774.3,1774.0,7.21945907]
[1745577652674,6.22692754,1774.3,1774.0,1.58248555]
[1745577653111,6.22692754,1774.3,1774.1,0.7666]
[1745577653279,6.22692754,1774.3,1774.1,6.40316583]
[1745577653481,6.22692754,1774.3,1774.1,0.7666]
[1745577653704,6.22692754,1774.3,1774.1,7.76545795]
[1745577654121,6.22692754,1774.3,1774.2,5.63634314]
[1745577654279,0.22692754,1774.3,1774.1,7.76545795]
[1745577654491,6.0,1774.6,1774.1,7.76529777]
[1745577654806,6.0,1774.6,1774.2,5.63625019]
[1745577655010,7.24298653,1774.7,1774.3,5.63591267]
[1745577655212,7.24298653,1774.7,1774.2,6.9764113]
[1745577655726,7.24298653,1774.7,1774.2,6.97630873]
[1745577656024,7.24298653,1774.7,1774.2,6.97628661]
[1745577656408,7.24298653,1774.7,1774.2,6.97627908]
[1745577656604,7.24298653,1774.7,1774.3,5.6359749]
[1745577657224,7.24298653,1774.7,1774.2,5.63611797]
[1745577657525,7.24298653,1774.7,1774.2,11.27223985]
[1745577657826,7.24298653,1774.7,1774.3,5.6360145]
[1745577658028,6.8181,1774.7,1774.1,0.7666]
[1745577658199,6.8181,1774.7,1774.2,5.63612981]
[1745577658534,7.24400191,1774.7,1774.3,6.19961511]
[1745577659032,6.8181,1774.7,1774.3,6.19961511]
[1745577659235,6.8181,1774.7,1774.3,11.83543095]
[1745577659529,6.8181,1774.7,1774.3,0.56361298]
[1745577659827,6.8181,1774.7,1774.2,5.6361502]
[1745577660199,6.8181,1774.7,1774.2,5.63614544]
[1745577660539,6.8181,1774.7,1774.3,5.63601862]
[1745577660704,6.8181,1774.7,1774.3,5.63592799]
[1745577660904,6.8181,1774.7,1774.1,0.7666]
[1745577661239,0.7869,1774.5,1774.0,0.413709]
[1745577661752,3.0,1774.4,1774.0,0.413709]
[1745577662092,0.2049227,1774.3,1774.0,0.413709]
[1745577662532,0.2049227,1774.3,1774.1,5.63656138]
[1745577662732,0.2049227,1774.3,1774.0,6.05044258]
[1745577663038,0.7869,1774.5,1774.0,6.05044258]
[1745577663039,0.20453805,1774.2,1774.1,0.60504426]
[1745577663197,0.7869,1774.5,1774.0,6.05058276]
[1745577663397,0.2053073,1774.4,1774.0,0.413709]
[1745577663596,0.2053073,1774.4,1774.0,6.05056246]
[1745577663823,0.2053073,1774.4,1774.0,6.05047908]
[1745577664040,0.2053073,1774.4,1774.0,0.413709]
[1745577664400,0.60452803,1774.4,1774.0,6.05052725]
[1745577664721,0.60452803,1774.4,1774.0,0.413709]
[1745577667637,6.0,1774.3,1774.0,6.05068727]
[1745577667943,6.0,1774.5,1774.4,6.44860784]
[1745577668146,6.0,1774.7,1774.4,6.44853348]
[1745577668611,6.0,1774.7,1774.4,0.8129]
[1745577669650,6.0,1774.7,1774.4,7.09327809]
[1745577669835,6.0,1774.7,1774.4,12.72881228]
[1745577670260,6.0,1774.7,1774.4,7.09327809]
[1745577670425,6.0,1774.7,1774.4,7.09328643]
[1745577670861,6.0,1774.7,1774.4,1.45776948]
[1745577673365,6.0,1774.7,1774.4,7.09337388]
[1745577673531,6.0,1774.8,1774.6,5.63491194]
[1745577674065,6.0,1775.0,1774.6,5.63491194]
[1745577674424,6.0,1775.0,1774.5,6.34458764]
[1745577674425,6.0,1775.0,1774.5,11.97977774]
[1745577674621,6.0,1775.0,1774.5,6.34450882]
[1745577674856,6.0,1775.0,1774.6,6.269509]
[1745577675230,6.0,1775.0,1774.6,0.63445088]
[1745577676139,6.0,1775.0,1774.6,6.26952038]
[1745577676470,6.0,1775.1,1774.8,5.63432625]
[1745577676628,6.0,1775.1,1774.8,5.63421362]
[1745577676830,6.0,1775.1,1774.8,6.83802836]
[1745577677269,0.12083624,1775.0,1774.8,12.47234316]
[1745577677461,0.12083624,1775.0,1774.9,5.63412023]
[1745577677970,3.0,1775.3,1775.0,5.63371705]
[1745577678184,3.0,1775.3,1775.0,5.63366313]
[1745577678343,0.12269281,1775.2,1775.0,11.90855671]
[1745577678548,0.12269281,1775.2,1775.1,5.63348543]
[1745577678759,0.12269281,1775.2,1775.0,12.6714848]
[1745577678957,6.0,1775.4,1775.0,12.6714848]
[1745577679240,3.0,1775.3,1774.9,0.7798]
[1745577679489,0.89249485,1775.2,1774.7,5.9023]
[1745577679961,0.89249485,1775.2,1774.7,11.5369995]
[1745577680156,0.89249485,1775.2,1774.7,11.53689073]
[1745577680869,0.89249485,1775.2,1774.7,11.53691187]
[1745577681070,0.89249485,1775.2,1774.7,13.31753773]
[1745577681587,3.0,1775.0,1774.6,0.63445088]
[1745577681764,9.0,1775.0,1774.5,0.8173]
[1745577681939,0.12259332,1774.9,1774.5,6.45268546]
[1745577682488,0.12259332,1774.9,1774.5,6.45246243]
[1745577683468,0.12259332,1774.9,1774.5,0.8173]
[1745577685642,0.12259332,1774.9,1774.6,5.63506261]
[1745577685978,0.12259332,1774.9,1774.6,1.20875808]
[1745577686774,0.12259332,1774.9,1774.5,6.45248855]
[1745577686975,0.12259332,1774.9,1774.5,12.08771241]
[1745577687249,0.12259332,1774.9,1774.5,6.45246799]
[1745577688082,6.12259332,1774.9,1774.4,5.8662]
[1745577688383,3.765,1774.8,1774.4,5.084]
[1745577688591,3.8864936,1774.8,1774.4,6.23420898]
[1745577688745,3.8864936,1774.8,1774.4,11.86985578]
[1745577689463,3.87704941,1774.8,1774.4,6.23420898]
[1745577690062,9.87704941,1774.8,1774.4,5.084]
[1745577690266,9.87704941,1774.8,1774.3,5.63599114]
[1745577690466,9.87704941,1774.8,1774.2,6.45206389]
[1745577690653,9.87704941,1774.8,1774.3,5.636018]
[1745577690848,9.87704941,1774.8,1774.2,12.08814041]
[1745577691088,9.87704941,1774.8,1774.1,5.084]
[1745577691089,0.1214936,1774.8,1774.6,1.54754685]
[1745577691287,0.1214936,1774.8,1774.6,6.41952665]
[1745577691490,0.11067419,1774.7,1774.6,6.41952665]
[1745577691790,3.0,1775.1,1774.6,6.41952665]
[1745577691987,0.11081978,1774.7,1774.6,6.41952665]
[1745577692204,3.0,1775.1,1774.7,5.63455314]
[1745577692571,3.7817,1775.1,1774.7,5.63455314]
[1745577692800,3.7817,1775.1,1774.6,7.62505457]
[1745577693415,3.7817,1775.1,1774.6,7.62492339]
[1745577693985,3.7817,1775.1,1774.6,1.99007429]
[1745577694195,4.75987,1775.1,1774.5,5.63510595]
[1745577694375,4.75987,1775.1,1774.5,11.2703123]
[1745577694575,4.75987,1775.1,1774.5,5.63510595]
[1745577694805,4.75987,1775.1,1774.5,11.27027033]
[1745577694999,4.75987,1775.1,1774.5,5.63510595]
[1745577695213,4.75987,1775.1,1774.6,0.5635106]
[1745577696510,0.8319,1775.0,1774.4,5.63561434]
[1745577696924,3.0,1774.8,1774.4,11.27110141]
[1745577697078,3.0,1774.8,1774.4,5.63548707]
[1745577697281,3.0,1774.8,1774.4,5.63548159]
[1745577697503,3.0,1774.8,1774.4,11.27097509]
[1745577697704,3.0,1774.8,1774.5,1.12709751]
[1745577697905,3.0,1774.8,1774.4,5.63548159]
[1745577698619,3.0,1774.8,1774.5,5.6352711]
[1745577698914,3.0,1774.8,1774.4,5.63551645]
[1745577699610,3.0,1774.8,1774.4,11.27099338]
[1745577699807,3.0,1774.8,1774.4,5.63548196]
[1745577700014,3.0,1774.8,1774.5,0.5635482]
[1745577700713,3.0,1774.8,1774.3,6.39212867]